bitfinex-derivatives/quotes_SOLF0:USTF0_20241025
["timestamp","ask_amount","ask_price","bid_price","bid_amount"]
[1729868436110,5.9513,175.99,175.95,2.8429]
[1729868436412,2.8425,175.98,175.9,5.34]
[1729868436614,3.109,175.99,175.9,5.34]
[1729868437114,3.109,175.99,175.93,2.8432]
[1729868438019,21.85317133,175.97,175.83,30.65037133]
[1729868438321,2.843,175.95,175.84,5.34]
[1729868439205,2.843,175.95,175.87,2.8442]
[1729868439415,2.843,175.95,175.84,5.34]
[1729868439817,2.843,175.95,175.91,2.8436]
[1729868440212,1.4705,175.96,175.84,5.34]
[1729868440517,3.109,175.99,175.89,21.85317133]
[1729868440818,3.109,175.99,175.9,5.34]
[1729868441019,2.8427,175.97,175.92,2.8434]
[1729868441406,21.85317133,175.98,175.89,5.34]
[1729868441612,2.843,175.95,175.89,5.34]
[1729868441816,1.5,175.96,175.89,5.34]
[1729868442215,4.3428,175.96,175.91,2.8436]
[1729868442515,4.3428,175.96,175.89,5.34]
[1729868442516,1.5,175.96,175.87,5.34]
[1729868442916,2.8432,175.94,175.9,2.8438]
[1729868443117,1.5,175.96,175.9,2.8438]
[1729868443521,2.843,175.95,175.9,2.8438]
[1729868443914,1.5,175.96,175.9,2.8438]
[1729868444410,2.8431,175.94,175.9,2.8438]
[1729868444724,1.5,175.96,175.91,2.8436]
[1729868444931,2.843,175.95,175.91,2.8436]
[1729868445127,1.5,175.96,175.86,5.34]
[1729868445418,1.5,175.96,175.91,2.8434]
[1729868445721,4.3428,175.96,175.92,2.8433]
[1729868445919,1.5,175.96,175.86,27.19317133]
[1729868446520,2.8425,175.98,175.86,27.19317133]
[1729868448018,2.8425,175.98,175.93,2.8431]
[1729868448318,3.109,175.99,175.86,27.19317133]
[1729868448621,3.109,175.99,175.9,2.8436]
[1729868449121,2.8427,175.97,175.9,2.8436]
[1729868449425,21.85317133,175.95,175.86,5.34]
[1729868449624,21.85317133,175.95,175.83,3.1076]
[1729868449823,21.85317133,175.92,175.83,1.5066]
[1729868450018,21.85317133,175.92,175.82,1.6003]
[1729868450019,21.85317133,175.92,175.85,2.8445]
[1729868450927,2.8439,175.89,175.85,2.8445]
[1729868452627,2.8441,175.88,175.84,2.8447]
[1729868452816,2.9287,175.91,175.79,83.31317133]
[1729868453024,21.85317133,175.89,175.8,5.34]
[1729868453723,1.5688,175.88,175.76,21.85317133]
[1729868453927,1.5688,175.88,175.77,5.34]
[1729868454124,1.5688,175.88,175.75,4.6611]
[1729868454125,21.85317133,175.87,175.75,4.6611]
[1729868454327,2.845,175.83,175.79,2.8455]
[1729868454527,21.85317133,175.84,175.76,5.34]
[1729868454729,21.85317133,175.84,175.71,102.19096803]
[1729868454936,21.85317133,175.84,175.72,5.34]
[1729868454937,2.9856,175.83,175.72,5.34]
[1729868455735,2.8457,175.79,175.72,5.34]
[1729868456924,8.3256,175.83,175.72,5.34]
[1729868457230,21.85317133,175.81,175.72,5.34]
[1729868457431,1.4568,175.8,175.72,5.34]
[1729868457828,2.8462,175.76,175.72,5.34]
[1729868458029,2.8462,175.76,175.72,8.1866]
[1729868458434,2.8462,175.76,175.72,2.8466]
[1729868460233,2.8466,175.73,175.69,2.8471]
[1729868460441,21.85317133,175.78,175.68,5.34]
[1729868460442,27.19317133,175.78,175.68,5.34]
[1729868460738,5.34,175.78,175.68,5.34]
[1729868460929,2.8461,175.76,175.71,2.8468]
[1729868462435,2.8464,175.74,175.7,2.8469]
[1729868462638,19.01441451,175.78,175.68,19.01441451]
[1729868463434,2.8462,175.75,175.71,2.8467]
[1729868464838,13.67441451,175.78,175.71,2.8467]
[1729868464839,2.846,175.77,175.71,2.8467]
[1729868465334,15.13121451,175.8,175.74,2.8463]
[1729868465530,1.4568,175.8,175.72,13.67441451]
[1729868466433,2.8457,175.79,175.72,13.67441451]
[1729868466633,2.9856,175.83,175.74,13.67441451]
[1729868466837,2.9856,175.83,175.77,13.67441451]
[1729868467040,2.8451,175.82,175.78,2.8457]
[1729868467631,2.8452,175.81,175.78,2.8457]
[1729868468134,2.845,175.82,175.79,2.8455]
[1729868468436,2.9856,175.83,175.74,13.67441451]
[1729868468637,2.88720371,175.85,175.77,13.67441451]
[1729868468841,5.34,175.86,175.77,13.67441451]
[1729868469048,2.83938063,175.85,175.77,13.67441451]
[1729868469242,2.83938063,175.85,175.79,13.67441451]
[1729868469438,2.9071,175.88,175.81,13.67441451]
[1729868469634,5.34,175.9,175.81,13.67441451]
[1729868469834,2.844,175.89,175.85,2.8444]
[1729868470035,5.34,175.92,175.84,13.67441451]
[1729868470236,18.06961451,175.93,175.84,13.67441451]
[1729868470431,2.8436,175.91,175.84,13.67441451]
[1729868470741,2.9071,175.93,175.84,13.67441451]
[1729868470941,2.8436,175.92,175.88,2.844]
[1729868472637,2.8432,175.94,175.89,2.8439]
[1729868473039,1.4881,175.99,175.93,2.8431]
[1729868473040,5.34,175.98,175.93,2.8431]
[1729868473250,2.8424,175.99,175.89,21.85971339]
[1729868473435,2.8424,175.99,175.9,1.4348]
[1729868473749,8.4999,176.01,175.9,1.4348]
[1729868473947,3.1599,176.01,175.9,1.4348]
[1729868474149,1.4436,176.03,175.97,2.8425]
[1729868474539,2.842,176.01,175.97,2.8425]
[1729868475141,2.8419,176.02,175.93,5.34]
[1729868475342,24.7350601,176.06,175.93,5.34]
[1729868475343,5.34,176.05,175.94,21.85971339]
[1729868475640,1.5845,176.07,175.94,21.85971339]
[1729868475848,23.38881339,176.11,175.97,21.85971339]
[1729868476043,23.38881339,176.11,175.98,5.34]
[1729868476243,2.8408,176.09,176.04,2.8414]
[1729868477350,23.38881339,176.11,176.02,2.8416]
[1729868477860,2.8411,176.07,176.02,2.8416]
[1729868480251,2.8408,176.08,176.03,2.8416]
[1729868480849,2.841,176.07,176.02,2.8417]
[1729868481558,23.38881339,176.11,175.98,6.7748]
[1729868482773,2.8411,176.07,176.01,2.8418]
[1729868482976,21.85971339,176.08,175.95,1.4793]
[1729868483167,2.8414,176.05,175.98,2.8424]
[1729868483369,2.8414,176.05,175.95,6.8193]
[1729868483565,23.39861339,176.08,175.95,6.8193]
[1729868483764,2.8415,176.04,175.99,2.8421]
[1729868484274,2.8418,176.02,175.98,2.8424]
[1729868484667,21.85971339,176.05,175.95,28.67901339]
[1729868484863,23.39861339,176.08,175.95,28.67901339]
[1729868485067,2.8415,176.04,175.95,28.67901339]
[1729868485278,1.5389,176.08,175.98,21.85971339]
[1729868485478,2.8412,176.06,176.01,2.8418]
[1729868485778,5.34,176.09,175.99,1.5221]
[1729868485968,2.841,176.07,176.03,2.8416]
[1729868486163,1.5291,176.11,176.0,27.19971339]
[1729868487067,2.8408,176.08,176.03,2.8415]
[1729868487267,2.8408,176.08,176.0,27.19971339]
[1729868487665,2.8408,176.08,176.04,2.8413]
[1729868488474,21.85971339,176.12,176.0,27.19971339]
[1729868488669,2.8407,176.09,176.0,27.19971339]
[1729868489275,6.7817,176.13,176.0,27.19971339]
[1729868489473,6.7817,176.13,176.05,2.8412]
[1729868490169,2.8408,176.08,176.05,2.8412]
[1729868490374,2.8408,176.08,176.01,1.568]
[1729868490576,2.8408,176.08,176.04,2.8414]
[1729868490775,2.8405,176.1,176.04,2.8414]
[1729868490973,23.40981339,176.12,176.04,2.8414]
[1729868491372,2.8409,176.08,176.04,2.8414]
[1729868491770,23.40981339,176.12,176.01,1.568]
[1729868491974,23.40981339,176.12,176.0,5.34]
[1729868492278,23.40981339,176.12,175.99,2.8421]
[1729868492279,21.85971339,176.09,175.99,2.8421]
[1729868492576,21.85971339,176.09,175.98,5.34]
[1729868492878,2.8413,176.05,176.02,2.8416]
[1729868493476,2.8413,176.05,176.01,2.8419]
[1729868493868,21.85971339,176.09,175.98,5.34]
[1729868494073,2.8409,176.08,176.04,2.8414]
[1729868494378,23.40981339,176.12,176.04,2.8414]
[1729868494576,2.8409,176.08,176.04,2.8414]
[1729868494881,21.85971339,176.09,175.98,5.34]
[1729868495471,5.34,176.08,175.99,2.8422]
[1729868495668,2.8417,176.03,175.99,2.8422]
[1729868495871,5.34,176.08,175.98,5.34]
[1729868496275,2.8414,176.05,175.98,18.98296877]
[1729868497078,2.8414,176.05,176.01,2.8419]
[1729868497480,18.98296877,176.08,176.0,2.8421]
[1729868498284,2.8416,176.04,176.0,2.8421]
[1729868499176,18.98296877,176.08,176.0,2.8421]
[1729868499383,2.8416,176.03,176.0,2.8421]
[1729868499587,13.64296877,176.1,176.03,2.8415]
[1729868500090,2.841,176.07,176.0,13.64296877]
[1729868500290,1.5501,176.12,176.03,13.64296877]
[1729868500487,2.8404,176.11,176.05,13.64296877]
[1729868500680,1.4417,176.13,176.05,13.64296877]
[1729868500986,2.8405,176.1,176.07,2.8409]
[1729868501196,13.64296877,176.15,176.05,13.64296877]
[1729868501582,2.8405,176.1,176.07,2.8408]
[1729868502189,2.8403,176.11,176.08,2.8407]
[1729868502492,13.64296877,176.15,176.05,13.64296877]
[1729868502986,13.64296877,176.15,176.08,2.8407]
[1729868503889,2.8405,176.11,176.08,2.8407]
[1729868504485,13.64296877,176.15,176.05,13.64296877]
[1729868504778,2.8404,176.11,176.07,2.8408]
[1729868505984,2.8404,176.11,176.08,2.8408]
[1729868506182,2.8397,176.15,176.07,13.64296877]
[1729868506382,5.34,176.17,176.07,13.64296877]
[1729868506587,5.34,176.17,176.08,5.32]
[1729868507093,2.8401,176.13,176.09,2.8406]
[1729868507286,5.34,176.17,176.09,2.8406]
[1729868507483,2.8402,176.12,176.09,2.8406]
[1729868508186,18.96296877,176.19,176.08,5.32]
[1729868508389,2.84,176.13,176.1,2.8404]
[1729868509186,2.84,176.13,176.08,5.32]
[1729868509384,13.64296877,176.18,176.09,2.8406]
[1729868509986,5.32,176.19,176.1,2.8404]
[1729868509987,2.8401,176.13,176.1,2.8404]
[1729868511382,18.96296877,176.19,176.09,13.64296877]
[1729868511588,2.8404,176.11,176.08,8.1607]
[1729868511784,13.64296877,176.17,176.08,8.1607]
[1729868511988,2.8403,176.12,176.08,8.1607]
[1729868512287,2.8403,176.12,176.08,5.32]
[1729868512491,2.8403,176.12,176.09,2.8406]
[1729868512701,2.84,176.13,176.09,2.8406]
[1729868513288,13.64296877,176.17,176.09,2.8406]
[1729868513585,1.5437,176.21,176.11,2.8402]
[1729868513789,20.50666877,176.21,176.11,2.8402]
[1729868513988,20.50666877,176.21,176.09,13.64296877]
[1729868514389,13.64296877,176.19,176.09,13.64296877]
[1729868514592,2.84,176.14,176.1,2.8404]
[1729868514991,2.84,176.14,176.09,13.64296877]
[1729868515798,13.64296877,176.19,176.09,13.64296877]
[1729868516692,2.8401,176.13,176.1,2.8404]
[1729868517493,2.8399,176.14,176.11,2.8403]
[1729868517987,13.64296877,176.2,176.11,13.64296877]
[1729868518192,6.8637,176.21,176.11,13.64296877]
[1729868518394,1.5437,176.21,176.11,13.64296877]
[1729868518793,1.5437,176.21,176.14,13.64296877]
[1729868519000,2.8394,176.17,176.14,16.48266877]
[1729868519304,1.5437,176.21,176.14,13.64296877]
[1729868519596,3.1238,176.22,176.16,13.64296877]
[1729868519896,13.64296877,176.25,176.16,13.64296877]
[1729868520393,2.8385,176.23,176.17,2.8392]
[1729868520702,21.84396877,176.27,176.18,13.64296877]
[1729868521304,2.881,176.27,176.18,13.64296877]
[1729868521490,2.881,176.27,176.18,18.96296877]
[1729868522091,2.8381,176.25,176.21,2.8386]
[1729868522395,6.7699,176.3,176.2,13.64296877]
[1729868522588,2.8385,176.23,176.2,2.8388]
[1729868522992,2.8385,176.23,176.18,18.96296877]
[1729868522993,13.64296877,176.26,176.18,5.32]
[1729868523191,2.8386,176.22,176.18,8.1591]
[1729868523594,13.64296877,176.24,176.17,5.32]
[1729868523791,2.8389,176.2,176.17,5.32]
[1729868524091,6.7699,176.3,176.17,5.32]
[1729868524092,13.64296877,176.25,176.17,5.32]
[1729868524794,13.64296877,176.25,176.16,13.64296877]
[1729868524988,13.64296877,176.25,176.17,2.8392]
[1729868525196,13.64296877,176.25,176.16,13.64296877]
[1729868525390,2.839,176.2,176.16,16.48236877]
[1729868525585,18.96296877,176.25,176.15,5.32]
[1729868525586,13.64296877,176.23,176.15,5.32]
[1729868525992,2.839,176.19,176.16,2.8395]
[1729868526188,13.64296877,176.23,176.14,13.64296877]
[1729868526392,13.64296877,176.21,176.12,5.32]
[1729868526595,13.64296877,176.19,176.12,5.32]
[1729868527002,13.64296877,176.16,176.07,13.64296877]
[1729868527200,2.8402,176.12,176.08,2.8407]
[1729868527597,2.8402,176.12,176.07,18.96296877]
[1729868528002,13.64296877,176.17,176.07,18.96296877]
[1729868528199,2.84,176.13,176.09,2.8406]
[1729868528898,13.64296877,176.17,176.09,2.8406]
[1729868529095,2.8401,176.13,176.09,2.8406]
[1729868529495,13.64296877,176.17,176.09,2.8406]
[1729868529695,2.8402,176.12,176.09,2.8406]
[1729868530706,1.4317,176.16,176.07,18.96296877]
[1729868531397,2.84,176.13,176.09,2.8406]
[1729868531999,13.64296877,176.15,176.08,2.8407]
[1729868532195,15.20236877,176.15,176.08,2.8407]
[1729868532809,15.20236877,176.15,176.05,18.96296877]
[1729868533007,13.64296877,176.13,176.05,18.96296877]
[1729868533197,2.8411,176.07,176.03,5.32]
[1729868534100,2.8402,176.12,176.08,2.8407]
[1729868534299,2.9598,176.16,176.09,13.64296877]
[1729868534603,2.8399,176.14,176.1,2.8403]
[1729868536305,5.32,176.17,176.09,13.64296877]
[1729868536609,2.8397,176.15,176.11,16.48316877]
[1729868537505,5.32,176.26,176.13,13.64296877]
[1729868537812,2.78901458,176.31,176.2,13.64296877]
[1729868537813,8.3157,176.27,176.2,13.64296877]
[1729868538009,2.8385,176.23,176.2,13.64296877]
[1729868539412,2.8382,176.24,176.2,13.64296877]
[1729868540410,2.838,176.26,176.2,13.64296877]
[1729868540612,2.9957,176.27,176.2,13.64296877]
[1729868540907,2.8376,176.28,176.22,13.64296877]
[1729868541114,2.9303,176.34,176.26,13.64296877]
[1729868541417,2.8363,176.36,176.31,2.837]
[1729868541714,16.57326877,176.4,176.3,13.64296877]
[1729868541911,2.836,176.37,176.3,16.48016877]
[1729868542103,16.57326877,176.4,176.3,16.48016877]
[1729868542611,16.57326877,176.4,176.3,13.64296877]
[1729868543808,2.8363,176.37,176.32,2.8368]
[1729868544211,2.8363,176.37,176.28,5.32]
[1729868544212,2.9303,176.4,176.34,13.64296877]
[1729868544408,2.9303,176.4,176.33,21.78662506]
[1729868544911,2.836,176.38,176.33,21.78662506]
[1729868545110,2.836,176.38,176.32,2.8369]
[1729868545318,2.9303,176.4,176.32,2.8369]
[1729868545812,2.9303,176.4,176.3,21.78662506]
[1729868546018,2.9303,176.4,176.28,5.32]
[1729868546019,2.9303,176.4,176.31,2.837]
[1729868546606,2.8363,176.36,176.31,2.837]
[1729868547519,2.9303,176.4,176.29,21.78662506]
[1729868547922,2.9303,176.4,176.28,5.32]
[1729868548113,2.9303,176.4,176.31,2.8369]
[1729868548114,2.8363,176.36,176.31,2.8369]
[1729868548417,2.9303,176.4,176.28,5.32]
[1729868549013,2.8365,176.35,176.3,2.8372]
[1729868549322,2.9303,176.4,176.28,5.32]
[1729868549514,2.9303,176.4,176.26,21.78662506]
[1729868549714,2.9303,176.4,176.27,5.32]
[1729868550114,2.8362,176.37,176.3,2.8371]
[1729868550315,2.9303,176.4,176.3,2.8371]
[1729868550513,2.9303,176.4,176.27,5.32]
[1729868550712,2.8364,176.36,176.31,2.8369]
[1729868550916,2.85107319,176.43,176.25,1.5075]
[1729868550917,7.88543624,176.63,176.32,27.10662506]
[1729868551121,165.41184139,176.65,176.32,27.10662506]
[1729868551122,21.78662506,176.46,176.32,27.10662506]
[1729868551317,24.67639843,176.46,176.32,27.10662506]
[1729868551515,24.67639843,176.46,176.34,2.8365]
[1729868551921,24.67639843,176.46,176.32,27.10662506]
[1729868552219,21.78662506,176.46,176.34,21.78662506]
[1729868552423,27.10662506,176.46,176.34,21.78662506]
[1729868552623,2.8357,176.4,176.36,2.8361]
[1729868552822,27.10662506,176.46,176.33,3.0102]
[1729868553014,2.8358,176.39,176.33,2.8366]
[1729868553213,21.78662506,176.43,176.31,5.32]
[1729868553730,5.32,176.46,176.31,5.32]
[1729868553924,21.78662506,176.44,176.32,21.78662506]
[1729868554326,2.8357,176.4,176.36,2.8361]
[1729868554630,2.8357,176.4,176.32,21.78662506]
[1729868555121,21.78662506,176.47,176.31,5.32]
[1729868555122,2.8354,176.42,176.35,21.78662506]
[1729868555315,2.8354,176.42,176.36,5.32]
[1729868555514,21.78662506,176.47,176.36,5.32]
[1729868555720,21.78662506,176.47,176.36,8.1562]
[1729868555920,21.78662506,176.47,176.32,1.5419]
[1729868556227,21.78662506,176.44,176.36,5.32]
[1729868556428,2.8359,176.39,176.36,5.32]
[1729868556814,21.78662506,176.44,176.35,8.1563]
[1729868557020,2.8358,176.39,176.35,8.1563]
[1729868557218,2.8358,176.39,176.31,21.78662506]
[1729868557219,21.78662506,176.44,176.34,8.1566]
[1729868557418,21.78662506,176.44,176.33,5.32]
[1729868557714,11.20688548,176.48,176.31,8.1569]
[1729868557715,21.78662506,176.41,176.31,8.1569]
[1729868557920,5.88688548,176.48,176.31,5.32]
[1729868557921,21.78662506,176.38,176.31,5.32]
[1729868558129,2.8363,176.36,176.31,5.32]
[1729868558322,21.78662506,176.38,176.31,5.32]
[1729868558626,2.8368,176.33,176.31,5.32]
[1729868558828,21.78662506,176.38,176.31,5.32]
[1729868559023,4.6878,176.4,176.31,5.32]
[1729868559024,4.6878,176.4,176.31,27.10662506]
[1729868560126,1.5632,176.4,176.31,27.10662506]
[1729868560314,2.8359,176.39,176.35,2.8363]
[1729868560518,27.10662506,176.44,176.35,2.8363]
[1729868561328,27.10662506,176.44,176.34,2.8365]
[1729868561532,2.8366,176.34,176.31,5.32]
[1729868562424,2.8363,176.36,176.32,2.8368]
[1729868562825,21.78662506,176.41,176.32,2.8368]
[1729868563017,2.8359,176.39,176.32,2.8368]
[1729868563221,21.78662506,176.41,176.32,2.8368]
[1729868563422,21.78662506,176.41,176.31,5.32]
[1729868563630,21.78662506,176.41,176.33,2.8366]
[1729868564319,21.78662506,176.41,176.31,5.32]
[1729868564622,7.169,176.46,176.35,2.8364]
[1729868564623,2.8359,176.39,176.35,2.8364]
[1729868565017,27.10662506,176.43,176.31,27.10662506]
[1729868565329,2.8356,176.41,176.34,21.78662506]
[1729868566220,2.8356,176.41,176.38,2.8359]
[1729868567119,23.28622506,176.46,176.36,5.32]
[1729868567317,1.4996,176.46,176.36,5.32]
[1729868567722,1.4996,176.46,176.38,2.8359]
[1729868567921,23.28622506,176.46,176.36,5.32]
[1729868568429,15.11489974,176.46,176.36,18.93529974]
[1729868569125,2.8351,176.43,176.38,13.61529974]
[1729868569325,2.8351,176.43,176.4,13.61529974]
[1729868569719,2.8351,176.43,176.4,16.45079974]
[1729868570427,3.0249,176.47,176.38,13.61529974]
[1729868570730,16.64019974,176.47,176.38,2.8358]
[1729868570921,13.61529974,176.46,176.38,2.8358]
[1729868571122,13.61529974,176.46,176.39,2.8358]
[1729868571322,13.61529974,176.46,176.37,5.32]
[1729868572033,3.0249,176.47,176.4,13.61529974]
[1729868572525,2.76791383,176.49,176.4,13.61529974]
[1729868573122,2.8351,176.44,176.4,16.45079974]
[1729868573627,2.76791383,176.49,176.4,16.45079974]
[1729868573928,2.8351,176.43,176.4,16.45079974]
[1729868574126,2.8351,176.43,176.4,2.8355]
[1729868574329,13.61529974,176.48,176.38,13.61529974]
[1729868574528,2.8351,176.44,176.38,13.61529974]
[1729868574725,13.61529974,176.48,176.38,13.61529974]
[1729868575925,13.61529974,176.46,176.37,5.32]
[1729868576124,13.61529974,176.46,176.38,2.8358]
[1729868576527,2.8359,176.39,176.37,5.32]
[1729868576731,2.8359,176.39,176.36,2.8363]
[1729868576930,15.14089974,176.49,176.3,1.5237]
[1729868576931,13.61529974,176.41,176.35,5.32]
[1729868577125,13.61529974,176.41,176.34,2.8365]
[1729868577331,13.61529974,176.39,176.28,155.49196974]
[1729868577634,13.61529974,176.39,176.29,5.32]
[1729868577931,1.5052,176.44,176.33,13.61529974]
[1729868578132,1.5052,176.44,176.35,13.61529974]
[1729868578329,2.8356,176.41,176.37,2.836]
[1729868578525,1.5052,176.44,176.35,18.93529974]
[1729868578930,1.5052,176.44,176.39,2.8357]
[1729868579534,2.8354,176.42,176.38,2.8358]
[1729868580836,2.8357,176.4,176.35,2.8363]
[1729868581135,2.8357,176.4,176.35,8.1563]
[1729868581639,2.8357,176.4,176.36,2.8362]
[1729868581830,1.5052,176.44,176.33,1.4832]
[1729868582030,21.78237879,176.4,176.31,5.32]
[1729868582227,3.0632,176.39,176.31,5.32]
[1729868582428,2.8369,176.33,176.28,147.19667]
[1729868582640,3.0632,176.39,176.3,2.8372]
[1729868583034,2.8366,176.34,176.31,2.8371]
[1729868584045,2.8366,176.34,176.3,2.8372]
[1729868585448,2.8368,176.33,176.3,2.8372]
[1729868586051,3.0632,176.39,176.28,147.19667]
[1729868586052,21.78237879,176.38,176.28,147.19667]
[1729868586556,21.78237879,176.35,176.28,141.87667]
[1729868586751,27.10237879,176.35,176.28,141.87667]
[1729868587052,5.32,176.35,176.28,141.87667]
[1729868587545,5.32,176.35,176.28,144.71417]
[1729868587951,2.8372,176.31,176.28,144.71417]
[1729868589150,2.8368,176.33,176.29,2.8373]
[1729868589842,2.8366,176.34,176.31,2.8371]
[1729868590245,2.8366,176.34,176.28,141.87667]
[1729868590442,2.8366,176.34,176.3,2.8371]
[1729868592857,2.8369,176.33,176.29,8.1573]
[1729868593049,1.4496,176.37,176.29,5.32]
[1729868593447,3.0632,176.39,176.3,21.78237879]
[1729868593657,5.32,176.42,176.3,21.78237879]
[1729868593956,2.8361,176.38,176.3,21.78237879]
[1729868594253,5.32,176.42,176.3,21.78237879]
[1729868594657,2.8359,176.39,176.35,2.8363]
[1729868594852,4.5122,176.44,176.34,5.32]
[1729868595255,4.5122,176.44,176.34,8.3839]
[1729868595256,2.8353,176.42,176.34,8.3839]
[1729868595765,4.5122,176.44,176.34,6.822]
[1729868595969,4.5122,176.44,176.34,5.32]
[1729868596254,26.29457879,176.44,176.34,5.32]
[1729868596448,26.29457879,176.44,176.35,2.8364]
[1729868597656,2.8359,176.39,176.35,2.8364]
[1729868598058,26.29457879,176.44,176.34,5.32]
[1729868598259,2.836,176.38,176.34,8.1565]
[1729868598661,4.5122,176.44,176.34,5.32]
[1729868599162,2.8354,176.42,176.34,5.32]
[1729868599562,2.8354,176.42,176.39,2.8358]
[1729868599868,2.8354,176.42,176.35,21.78237879]
[1729868600354,2.8354,176.42,176.37,16.44811942]
[1729868600556,4.5122,176.44,176.37,16.44811942]
[1729868600860,2.8355,176.41,176.37,16.44811942]
[1729868602463,13.61221942,176.48,176.37,13.61221942]
[1729868603055,13.61221942,176.48,176.39,2.8358]
[1729868603056,2.8354,176.42,176.39,2.8358]
[1729868603757,13.61221942,176.48,176.37,13.61221942]
[1729868603958,13.61221942,176.48,176.38,2.8358]
[1729868604462,2.8354,176.42,176.38,2.8358]
[1729868604658,2.8354,176.42,176.37,13.61221942]
[1729868605162,2.8351,176.44,176.4,13.61221942]
[1729868605769,2.8351,176.44,176.41,2.8354]
[1729868606069,2.8348,176.45,176.4,13.61221942]
[1729868606272,2.8348,176.45,176.42,2.8353]
[1729868607170,4.5863,176.5,176.42,13.61221942]
[1729868607465,18.91221942,176.54,176.44,13.61221942]
[1729868607670,15.17521942,176.55,176.47,2.8345]
[1729868608062,15.17521942,176.55,176.45,5.3]
[1729868609658,2.834,176.51,176.47,2.8344]
[1729868609857,2.834,176.51,176.45,5.3]
[1729868610666,2.834,176.51,176.47,2.8344]
[1729868612068,2.834,176.5,176.47,2.8344]
[1729868612273,15.17521942,176.55,176.45,5.3]
[1729868613171,2.8343,176.49,176.45,8.1347]
[1729868614864,2.8343,176.49,176.46,2.8346]
[1729868615072,13.61221942,176.53,176.44,13.61221942]
[1729868615273,1.5357,176.52,176.44,13.61221942]
[1729868615472,1.563,176.55,176.47,2.8344]
[1729868615665,2.8338,176.52,176.46,13.61221942]
[1729868615972,13.61221942,176.56,176.48,2.8342]
[1729868616270,13.61221942,176.56,176.46,13.61221942]
[1729868616570,15.16661942,176.56,176.46,13.61221942]
[1729868616765,15.16661942,176.56,176.47,2.8344]
[1729868617358,2.834,176.51,176.47,2.8344]
[1729868619269,2.8343,176.49,176.45,2.8347]
[1729868619469,2.8343,176.49,176.42,13.61221942]
[1729868619470,13.61221942,176.52,176.42,5.3]
[1729868619668,13.61221942,176.52,176.42,18.91221942]
[1729868619972,2.8343,176.49,176.45,2.8347]
[1729868620169,13.61221942,176.54,176.44,13.61221942]
[1729868620372,15.16661942,176.56,176.44,13.61221942]
[1729868620573,15.16661942,176.56,176.48,2.8342]
[1729868620574,2.8339,176.51,176.48,2.8342]
[1729868620773,15.16661942,176.56,176.48,2.8342]
[1729868621471,2.8338,176.52,176.48,2.8342]
[1729868621675,2.8338,176.52,176.49,2.8341]
[1729868622374,2.8334,176.54,176.51,2.8339]
[1729868622768,1.5544,176.56,176.49,13.61221942]
[1729868623164,2.8335,176.54,176.5,2.8339]
[1729868623368,2.8335,176.54,176.49,13.61221942]
[1729868623771,3.0042,176.57,176.5,2.8339]
[1729868623973,3.0042,176.57,176.47,5.3]
[1729868623974,13.61221942,176.56,176.47,5.3]
[1729868624375,13.61221942,176.56,176.48,2.8342]
[1729868624570,2.8336,176.53,176.47,5.3]
[1729868624865,2.8336,176.53,176.5,2.8339]
[1729868625271,3.0042,176.57,176.48,5.3]
[1729868625272,2.8333,176.55,176.48,5.3]
[1729868625471,3.0042,176.57,176.48,5.3]
[1729868625472,3.0042,176.57,176.49,2.8342]
[1729868625875,2.8336,176.53,176.48,5.3]
[1729868626075,2.8336,176.53,176.5,2.834]
[1729868626471,2.8337,176.52,176.48,5.3]
[1729868626670,2.8337,176.52,176.49,2.8341]
[1729868626871,13.61221942,176.56,176.48,5.3]
[1729868627174,2.8339,176.51,176.48,5.3]
[1729868627669,13.61221942,176.54,176.44,13.61221942]